Cogmind - Beta 16 @@@ ROGUE MODE // 2025.12.19 @ 16:16:47 Player: TheGamingJasper Result: Self-destructed Performance ------------- Evolutions (1) 500 Regions Visited (4) 800 Robots Destroyed (4) 20 Value Destroyed (40) 40 Prototype IDs (0) 0 Alien Tech Used (0) 0 Bonus (0) 0 TOTAL SCORE: 1360 Bonus ------- None Cogmind --------- Core Integrity 286/400 Matter 246/300 Energy 100/100 System Corruption 0% Temperature Cool (0) Movement Core (50) Location -9/Storage Parts ------- > --- POWER (1) -------- (None) > --- PROPULSION (4) --- (None) > --- UTILITY (2) ------ Trap Scanner Targeting Computer > --- WEAPON (2) ------- (None) > --- INVENTORY (5) ---- Light Ion Engine Large Battery (200) Peak State ------------ > --- POWER ------------ Light Ion Engine > --- PROPULSION ------- Surge Thruster Surge Thruster Surge Thruster Surge Thruster > --- UTILITY ---------- Trap Scanner Targeting Computer > --- WEAPON ----------- Medium Laser Light Assault Rifle > --- INVENTORY -------- Light Ion Engine Flight Unit Large Battery Medium Laser [Rating: 19] Favorites ----------- Power Ion Engine Engine Ion Engine Propulsion Surge Thruster Wheel Wheel Flight Unit Surge Thruster Utility Targeting Computer Device Trap Scanner Storage Small Storage Unit Processor Targeting Computer Weapon Medium Laser Energy Gun Medium Laser Ballistic Gun Light Assault Rifle Build | -11 -10 -10 -9 -9 ------- Run | Yrd Mat Min Mat Sto Slots Evolved 2 | . . . 2 . Power . | . . . . . Propulsion 2 | . . . 2 . Utility . | . . . . . Weapon . | . . . . . Parts Attached 17 | 4 4 3 5 1 Power 2 | 1 . 1 . . Engine 2 | 1 . 1 . . Core . | . . . . . Reactor . | . . . . . Propulsion 9 | 2 . 2 4 1 Treads . | . . . . . Leg . | . . . . . Wheel 2 | 2 . . . . Hover . | . . . . . Flight 7 | . . 2 4 1 Utility 3 | 1 1 . 1 . Device 1 | . . . 1 . Storage 1 | 1 . . . . Processor 1 | . 1 . . . Hackware . | . . . . . Protection . | . . . . . Artifact . | . . . . . Weapon 3 | . 3 . . . Energy Gun 2 | . 2 . . . Energy Cannon . | . . . . . Ballistic Gun 1 | . 1 . . . Ballistic Cannon . | . . . . . Launcher . | . . . . . Special Weapon . | . . . . . Impact Weapon . | . . . . . Slashing Weapon . | . . . . . Piercing Weapon . | . . . . . Special Melee Weapon . | . . . . . Unidentified Prototypes . | . . . . . Parts Lost 10 | . . 1 . 9 Power 1 | . . . . 1 Propulsion 7 | . . 1 . 6 Utility . | . . . . . Weapon 2 | . . . . 2 Highest Loss Streak 8 | . . 1 . 8 To Critical Strikes . | . . . . . Average Backups 2 | 2 2 3 3 2 Power . | . 1 1 1 1 Propulsion . | . . . . . Utility . | . . 1 1 1 Weapon . | 1 1 1 1 . Tool/Special . | . . . . . Unused Backups 2 | . . . . 2 Power 1 | . . . . 1 Propulsion . | . . . . . Utility 1 | . . . . 1 Weapon . | . . . . . Tool/Special . | . . . . . Average Slot Usage (%) 90 | . 96 87 89 85 Engine 12 | . 14 14 11 9 Wheel 12 | . 28 11 . . Flight 19 | . . 9 40 36 Device 4 | . . . 5 11 Storage 6 | . 14 9 . . Processor 11 | . 11 14 11 11 Energy Gun 17 | . 26 28 11 6 Ballistic Gun 5 | . . . 11 10 Peak Build Rating 19 | 4 7 7 19 19 Average Rating 10 | 2 6 5 16 14 On Entrance 7 | . 4 7 6 19 Avg Prop Armor Cover (%) 3 | . . . . 3 Naked Turns . | . . . . . Heaviest Build 14 | 10 14 14 8 8 Greatest Support 26 | 26 26 8 12 13 Greatest Overweight (x) 4 | . . 4 . . Average Overweight (x) . | . . . . . Largest Inventory Capacity 8 | 8 8 8 5 5 Average Capacity 6 | 6 8 7 5 5 Most Carried 5 | 4 4 5 5 5 Average Carried 3 | 2 2 3 3 2 Final Capacity 8 | 8 8 5 5 5 Final Carried 4 | 4 3 3 4 2 Class Distribution -------------------- 51% | Mutant 48% | Sprinter Dominant Class ---------------- Mutant | -10/Materials Mutant | -10/Mines Sprinter | -9/Materials Sprinter | -9/Storage Resources | -11 -10 -10 -9 -9 ----------- Run | Yrd Mat Min Mat Sto Matter Collected 363 | 240 . 42 . 81 Remotely . | . . . . . Salvage Created 54 | . . 42 . 12 Parts 7 | . . 5 . 2 Haulers Intercepted . | . . . . . Recyclers Shooed . | . . . . . Parts Field Recycled . | . . . . . Retrieved Matter . | . . . . . Parts Self-Destructed . | . . . . . Prevented . | . . . . . Parts Restored . | . . . . . Kills | -11 -10 -10 -9 -9 ------- Run | Yrd Mat Min Mat Sto Combat Hostiles Destroyed 4 | . . 3 . 1 Guns 4 | . . 3 . 1 Classes Destroyed 1 | . . 1 . . Swarmer 4 | . . 3 . 1 Best Kill Streak 3 | . . 3 . 1 Combat Bots Only 3 | . . 3 . 1 Max Kills in Single Turn 1 | . . 1 . 1 Gunslinging . | . . . . . Exploded . | . . . . . Melee . | . . . . . Uniques/NPCs Destroyed . | . . . . . Combat | -11 -10 -10 -9 -9 -------- Run | Yrd Mat Min Mat Sto Hostile Shots Fired 130 | . 13 16 13 88 Missed 59 | . 7 5 3 44 Hits 71 | . 6 11 10 44 Projectile 71 | . 6 11 10 44 Critical Strikes 2 | . . . . 2 Damage Taken 816 | . 75 97 138 506 Core 142 | . 11 17 . 114 Absorbed by Shields . | . . . . . Core Remaining (%) 94 | 100 . 88 . . Volleys Fired 15 | . 2 6 5 2 Largest 2 | . 2 2 2 2 Hottest 100 | . 100 100 70 70 Shots Fired 30 | . 4 12 10 4 Gun 30 | . 4 12 10 4 Cannon . | . . . . . Launcher . | . . . . . Special . | . . . . . Kinetic 7 | . . . 5 2 Thermal 23 | . 4 12 5 2 Explosive . | . . . . . Electromagnetic . | . . . . . Robot Hit Streak 8 | . 2 4 8 2 Robot Miss Streak 4 | . 1 4 1 1 Penetration Max . | . . . . . Secondary Targets 1 | . . 1 . . Max Gunslinging Chain 1 | . . 1 . . Shots Hit Robots 19 | . 3 6 8 2 Core Hits 8 | . . 3 3 2 Critical Kills . | . . . . . Critical Parts Destroyed . | . . . . . Critical Strikes . | . . . . . Melee Attacks . | . . . . . Impact . | . . . . . Slashing . | . . . . . Piercing . | . . . . . Sneak Attacks . | . . . . . Combat Hostiles . | . . . . . Follow-up Attacks . | . . . . . Damage Inflicted 214 | . 39 75 81 19 Guns 214 | . 39 75 81 19 Cannons . | . . . . . Explosions . | . . . . . Melee . | . . . . . Ramming . | . . . . . Kinetic 51 | . . . 44 7 Thermal 163 | . 39 75 37 12 Explosive . | . . . . . Electromagnetic . | . . . . . Impact . | . . . . . Slashing . | . . . . . Piercing . | . . . . . Highest Corruption . | . . . . . Average Corruption . | . . . . . Corruption Purged . | . . . . . Corruption Blocked . | . . . . . Overload Shots . | . . . . . Overflow Damage . | . . . . . Projectiles . | . . . . . Explosions . | . . . . . Melee . | . . . . . Knockbacks . | . . . . . Impact . | . . . . . Kinetic . | . . . . . Secondary . | . . . . . Self-Inflicted Damage . | . . . . . Shots . | . . . . . Rammed . | . . . . . Targets Rammed . | . . . . . Kicked . | . . . . . Crushed . | . . . . . Highest Temperature 234 | . 102 234 159 31 Average Temperature 87 | . 58 119 93 13 Received Heat Transfer 294 | . 42 . 81 171 Effects 1 | . . 1 . . Energy Bleed 1 | . . 1 . . Siege Activations . | . . . . . Martial Activations . | . . . . . Shielding Activations . | . . . . . Robots Disrupted . | . . . . . Combat Hostiles . | . . . . . Robots Corrupted . | . . . . . Combat Hostiles . | . . . . . Parts Fried . | . . . . . Impact Corruptions . | . . . . . Robots Melted . | . . . . . Combat Hostiles . | . . . . . Parts Melted . | . . . . . Heat Transferred 481 | . 111 222 111 37 Parts Sabotaged . | . . . . . Parts Stolen . | . . . . . Parts Stripped . | . . . . . Power Chain Reactions . | . . . . . Alert | -11 -10 -10 -9 -9 ------- Run | Yrd Mat Min Mat Sto Maximum Alert Level . | . . . . . Low Security (%) 100 | 100 100 100 100 100 Level 1 . | . . . . . Level 2 . | . . . . . Level 3 . | . . . . . Level 4 . | . . . . . Level 5 . | . . . . . High Security . | . . . . . Max Security . | . . . . . Peak Influence 134 | . 20 60 35 134 Initial 15 | . . . 15 12 Average 27 | . 3 42 16 70 Influence Increases 402 | . 30 70 60 242 Destroy 0b10 Robot/C 80 | . . 60 . 20 Destroy Leader 20 | . . 10 . 10 Successful Hack 2 | . . . . 2 Partial Spotted 90 | . . . 45 45 Lose Combat Pursuer 210 | . 30 . 15 165 Influence Decreases 308 | . 30 30 70 178 Entered New Map 43 | . . . 25 18 Time Decay 165 | . 30 20 45 70 Lost Part 100 | . . 10 . 90 Squads Dispatched 3 | . 1 . 1 1 Investigation . | . . . . . Extermination . | . . . . . Reinforcement 3 | . 1 . 1 1 Assault . | . . . . . Garrison . | . . . . . Intercept . | . . . . . Searches Triggered . | . . . . . Construction Impeded . | . . . . . Haulers Reinforced . | . . . . . Active Scanning Responses . | . . . . . Cargo Convoy Interrupts . | . . . . . Stealth | -11 -10 -10 -9 -9 --------- Run | Yrd Mat Min Mat Sto Distress Signals 4 | . 2 . 1 1 Communications Jammed . | . . . . . Distress Signals . | . . . . . Times Spotted 48 | . 8 3 6 31 Peak Tracking Total 18 | . 6 3 6 18 Tactical Retreats 6 | . 1 . 1 4 Traps | -11 -10 -10 -9 -9 ------- Run | Yrd Mat Min Mat Sto Traps Triggered 1 | . . . . 1 Indirectly . | . . . . . Trap Hack Attempts . | . . . . . Triggered . | . . . . . Disarmed . | . . . . . Reprogrammed . | . . . . . Reused . | . . . . . Traps Extracted . | . . . . . Installed . | . . . . . Triggered . | . . . . . Machines | -11 -10 -10 -9 -9 ---------- Run | Yrd Mat Min Mat Sto Machines Disabled . | . . . . . Max in Single Turn . | . . . . . Machines Repaired . | . . . . . Machines Dismantled . | . . . . . Machines Sabotaged . | . . . . . Overloaded Fab Kills . | . . . . . Hacking | -11 -10 -10 -9 -9 --------- Run | Yrd Mat Min Mat Sto Machines Accessed 6 | . 3 . . 3 Terminals 6 | . 3 . . 3 Fabricators . | . . . . . Repair Stations . | . . . . . Recycling Units . | . . . . . Scanalyzers . | . . . . . Garrison Access . | . . . . . Total Hacks 12 | . 5 . . 7 Successful 3 | . . . . 3 Failed 9 | . 5 . . 4 Catastrophic 4 | . 2 . . 2 Database Lockouts . | . . . . . Manual 9 | . 5 . . 4 Terminals 12 | . 5 . . 7 Fabricators . | . . . . . Repair Stations . | . . . . . Recycling Units . | . . . . . Scanalyzers . | . . . . . Garrison Access . | . . . . . Terminal Hacks 3 | . . . . 3 Record 2 | . . . . 2 Open Door 1 | . . . . 1 Fabricator Hacks . | . . . . . Repair Station Hacks . | . . . . . Recycling Unit Hacks . | . . . . . Scanalyzer . | . . . . . Garrison Access Hacks . | . . . . . Unauthorized Hacks . | . . . . . Terminals . | . . . . . Fabricators . | . . . . . Repair Stations . | . . . . . Recycling Units . | . . . . . Scanalyzers . | . . . . . Garrison Access . | . . . . . Data Cores Recovered . | . . . . . Used . | . . . . . Hacking Detections 5 | . 3 . . 2 Full Trace Events . | . . . . . Feedback Events . | . . . . . Feedback Blocked . | . . . . . Robot Schematics Acquired . | . . . . . Robots Built . | . . . . . Authchips . | . . . . . Time . | . . . . . Total Robot Build Rating . | . . . . . Part Schematics Acquired . | . . . . . Parts Built . | . . . . . Authchips . | . . . . . Time . | . . . . . Total Part Build Rating . | . . . . . Part Studies Acquired . | . . . . . Parts Repaired . | . . . . . Time . | . . . . . Parts Recycled . | . . . . . Recycled Matter . | . . . . . Retrieved Matter . | . . . . . Retrieved Components . | . . . . . Parts Scanalyzed . | . . . . . Part Schematics Acquired . | . . . . . Parts Damaged . | . . . . . Bothacking | -11 -10 -10 -9 -9 ------------ Run | Yrd Mat Min Mat Sto Used RIF Installer . | . . . . . Robots Hacked . | . . . . . Non-combat . | . . . . . Combat . | . . . . . Robot Hacks Applied . | . . . . . Relay Couplers Released . | . . . . . Fabnet Peak Effective % . | . . . . . Robots Rewired . | . . . . . Allies Hacked . | . . . . . Hacks Repelled . | . . . . . Allies | -11 -10 -10 -9 -9 -------- Run | Yrd Mat Min Mat Sto Total Allies . | . . . . . Largest Group . | . . . . . Highest-Rated Group . | . . . . . Highest-Rated Ally . | . . . . . Total Orders . | . . . . . Ally Attacks . | . . . . . Total Damage . | . . . . . Kills . | . . . . . Allies Corrupted . | . . . . . Allies Melted . | . . . . . Intel | -11 -10 -10 -9 -9 ------- Run | Yrd Mat Min Mat Sto Active Infowar (turns) 208 | . . . 57 151 Traps 208 | . . . 57 151 Robot Analysis Total . | . . . . . Derelict Logs Recovered . | . . . . . Drone Launches . | . . . . . Drone Recoveries . | . . . . . Exploration | -11 -10 -10 -9 -9 ------------- Run | Yrd Mat Min Mat Sto Turns Passed 547 | 41 201 48 106 151 Spaces Moved 850 | 35 210 40 154 411 Core 19 | 5 . 4 . 10 Treads . | . . . . . Legs . | . . . . . Wheels 240 | 30 210 . . . Hover . | . . . . . Flight 591 | . . 36 154 401 Fastest Speed 26 | 50 90 37 26 26 Average Speed 47 | 84 90 58 27 29 Slowest Speed 250 | 90 90 250 37 50 Overloaded Moves . | . . . . . Propulsion Burnouts . | . . . . . Robots Hopped 25 | . . . 8 17 Potential Cave-ins . | . . . . . Cave-ins Triggered . | . . . . . Exploration Rate (%) 27 | 4 47 7 10 68 Regions Visited 4 Branch Regions 2 Pre-discovered Areas . | . . . . . Known Exits Taken . | . . . . . Unknown Exits Taken 4 | 1 1 1 1 . Scrap Searched . | . . . . . Spaces Dug . | . . . . . Terrain Destroyed . | . . . . . Melee . | . . . . . Projectile . | . . . . . AOE . | . . . . . Terrain Rammed . | . . . . . Walls Destroyed . | . . . . . Machines Disabled . | . . . . . Actions | -11 -10 -10 -9 -9 --------- Run | Yrd Mat Min Mat Sto Total 928 | 46 217 52 196 417 Wait 44 | . . . 31 13 Move 805 | 34 209 39 140 383 Hop 16 | . . . 5 11 Pick Up 18 | 8 2 2 4 2 Fast Attach 3 | . . . 2 1 Attach 14 | 4 3 2 1 4 Detach . | . . . . . Swap 9 | . 1 1 6 1 Drop 4 | . . 2 2 . Fire 15 | . 2 6 5 2 Melee . | . . . . . Ram . | . . . . . Kick . | . . . . . Crush . | . . . . . Escape Stasis . | . . . . . Rewire . | . . . . . Trap . | . . . . . Miscellaneous . | . . . . . Route ------- -11/Scrapyard -10/Materials -10/Mines -9/Materials (discovered 2 exits: [*Min] / *Sto) -9/Storage History --------- Turn | Location | Event 19 | -11/Scrapyard | Discovered new exit (range 16) 42 | -11/Scrapyard | Entered Materials 228 | -10/Materials | Discovered new exit (range 11) 243 | -10/Materials | Entered Mines 285 | -10/Mines | Discovered new exit (range 5) 291 | -10/Mines | Entered Materials 291 | -9/Materials | Evolved 2 slots: Propulsion x2 335 | -9/Materials | Discovered new exit (range 4) 347 | -9/Materials | Discovered new exit (range 12) 397 | -9/Materials | Entered Storage 548 | -9/Storage | Self-destructed Last Messages --------------- Acquired Flight Unit. K-01 Serf cleans the Storage Shell. K-01 Serf cleans the Transfer Shaft. Acquired 81 matter. K-01 Serf cleans the Transfer Shaft. Connecting with Door Terminal... >>Open(Door) Sealed Heavy Doors opened. Critical hit (Burn: +37). Surge Thruster destroyed. Lgt. Ion Engine destroyed. Flight Unit destroyed. G-34 Mercenary destroyed. Critical hit (Burn: +37). K-01 Serf cleans the Transfer Shaft. Lgt. Assault Rifle destroyed. Flight Unit destroyed. U-05 Engineer destroyed. K-01 Serf collects debris. Surge Thruster destroyed. Map ----- +----------------------------------------------------+ | T# ^ ^ """ + #????????? | | / *% ^ "R" # """"" #????????? | | # = ^ """ " " # """""??????????? | | # ########## """ # """"" #????????? | | ########???????## """ / #????????? | | ???????????????#" # """"" #????????? | | ???????????????#T # """"" #????????? | | ???????????????#" !== # """"" ?????????? | | ????#######????## !== # ?????????? | | ????# ####### != ########??????????? | | ????# #?????????????????? | | ????# !%= #?????????????????? | | ????# * #?????????????????? | | ????# #####/#########"#####?????????????????? | | ###### ### # #??????????????????? | | % # #?# """ # #??????????????????? | | " # #?# """ + """"" #??????????????????? | | "" # #?# """ # "???" #??????????????????? | | ?"" + #?# # "??"" #??????????????????? | | ??" # #?# """ # ""??" #??????????????????? | | ??" # ## """ # "???" #??????????????????? | | """ # ### """ # """"" #??????????????????? | | # #?# # #??????????????????? | | ###### #?############s######??????????????????? | | ?????#####???????#### ########??????????????? | | ??????????# @ ???????? | | ??????????# a Y Y ???????? | | ??????????# g ???????? | | ??????????# ####### #####g#### ????????? | | ????????????????????## ##?????????????????????? | | ?????????????????????# #??????????????????????? | | ?????????????????????# #??????????????????????? | | ?????????????????????# #??????????????????????? | | ?????????????????????# #??????????????????????? | | #????????????????????# #??????????????????????? | | #????????????????????#k #??????????????????????? | | #????????????????????# ???????????????????????? | | #????????????????????# ???????????????????????? | | #????????????????????# ???????????????????????? | | #????????????????????# ???????????????????????? | | #??????????????????????a????????????????????????? | | #???????????????????????????????????????????????? | | #???????????????????????????????????????????????? | | #???????????????????????????????????????????????? | | #???????????????????????????????????????????????? | | #???????????????????????????????????????????????? | | #???????????????????????????????????????????????? | | ????????????????????????????????????????????????? | | ????????????????????????????????????????????????? | | ????????????????????????????????????????????????? | +----------------------------------------------------+ Best States ------------- Heat Dissipation 28 Energy Generation 10 Energy Capacity 250 Matter Stores 300 Matter Capacity 300 Sight Range 16 Terrain Scan Density 10 Evasion (%) 64 Targeting Accuracy 5 Item Schematics ----------------- None Robot Schematics ------------------ None Fabricated ------------ Nothing Repaired ---------- Nothing Studied --------- None Alien Tech Used ----------------- None Achievements -------------- Cya! Challenges ------------ None Game ------ Seed MicroTeslaChronowheel Manual? 0 Play Time 00:15:46 Cumulative 19.5 hours Start 2025.12.19 @ 16:01:53 End 2025.12.19 @ 16:16:47 Sessions 1 Manual Loads 0 Difficulty Rogue Special Mode None Game No. 38 Rogue 37 Adventurer 1 Explorer 0 Win Type - Total 0 Types 0/0/0/0/0/0/0/0/0/0 Lore% 6 Gallery% 22 Achievement% 15 Wizard Run 0 Options --------- Layout 1 ASCII 0 Keyboard 0 Movement Arrows Keybinds 0 Fullscreen 1 Font 24/Smallcaps Map View 50x35 Zoom Use 0% Tactical HUD 0 Map Filters NONE Filters NONE Steam 1 RUN: 914ed9a2-4625-498a-b12c-36239c2eebae